fUST/lending_fUST_20250915
["ID","MTS","AMOUNT","RATE_DAILY","PERIOD"]
[385459751,1757866242954,-480.0,0.00021917,2]
[385459752,1757866242963,-151.0,0.00021917,2]
[385459753,1757866242972,-480.0,0.00021917,2]
[385459754,1757866242981,-480.0,0.00021917,2]
[385459755,1757866243131,-151.0,0.00021917,2]
[385459756,1757866243141,-480.0,0.00021917,2]
[385459757,1757866243150,-480.0,0.00021917,2]
[385459758,1757866243160,-480.0,0.00021917,2]
[385459759,1757866243169,-216.67611592,0.00021917,2]
[385459760,1757866243179,-3548.68,0.00021917,2]
[385459761,1757866243188,-151.0,0.00021917,2]
[385459762,1757866243197,-480.0,0.00021917,2]
[385459763,1757866243207,-480.0,0.00021917,2]
[385459764,1757866243216,-760.8,0.00021917,2]
[385459766,1757866243226,-480.0,0.00021917,2]
[385459768,1757866243235,-667.77,0.00021917,2]
[385459770,1757866243244,-480.0,0.00021917,2]
[385459772,1757866243254,-501.81,0.00021917,2]
[385459773,1757866243263,-480.0,0.00021917,2]
[385459774,1757866243273,-480.0,0.00021917,2]
[385459775,1757866243282,-480.0,0.00021917,2]
[385459776,1757866243292,-19932.88,0.00021917,2]
[385459778,1757866243301,-486.00297298,0.00021917,2]
[385459779,1757866243312,-480.0,0.00021917,2]
[385459780,1757866243322,-492.20820192,0.00021917,2]
[385459781,1757866243331,-1284.44,0.00021917,2]
[385459782,1757866243341,-480.0,0.00021917,2]
[385459783,1757866243350,-489.14633156,0.00021917,2]
[385459784,1757866243359,-480.0,0.00021917,2]
[385459785,1757866243369,-151.0,0.00021917,2]
[385459787,1757866243379,-5242.0,0.00021917,2]
[385459789,1757866243388,-480.0,0.00021917,2]
[385459791,1757866243397,-978.54,0.00021917,2]
[385459792,1757866243407,-480.0,0.00021917,2]
[385459793,1757866243416,-522.95,0.00021917,2]
[385459794,1757866243425,-480.0,0.00021917,2]
[385459795,1757866243434,-480.0,0.00021917,2]
[385459796,1757866243443,-480.0,0.00021917,2]
[385459797,1757866243453,-480.0,0.00021917,2]
[385459798,1757866243462,-480.0,0.00021917,2]
[385459799,1757866243471,-1206.0,0.00021917,2]
[385459800,1757866243480,-482.80465601,0.00021917,2]
[385459801,1757866243490,-480.0,0.00021917,2]
[385459802,1757866243499,-480.0,0.00021917,2]
[385459803,1757866243509,-480.0,0.00021917,2]
[385459804,1757866243518,-480.0,0.00021917,2]
[385459805,1757866243527,-922.4,0.00021917,2]
[385459806,1757866243536,-480.0,0.00021917,2]
[385459807,1757866243546,-151.0,0.00021917,2]
[385459808,1757866243555,-480.0,0.00021917,2]
[385459809,1757866243565,-480.0,0.00021917,2]
[385459810,1757866243574,-480.0,0.00021917,2]
[385459811,1757866243587,-235.66425328,0.00021917,2]
[385459812,1757866243596,-480.0,0.00021917,2]
[385459813,1757866243606,-480.0,0.00021917,2]
[385459814,1757866243616,-480.0,0.00021917,2]
[385459815,1757866243626,-3462.7,0.00021917,2]
[385459816,1757866243635,-480.0,0.00021917,2]
[385459817,1757866243644,-500.0,0.00021917,2]
[385459818,1757866243653,-480.0,0.00021917,2]
[385459819,1757866243663,-2378.56,0.00021917,2]
[385459820,1757866243672,-489.20108789,0.00021917,2]
[385459821,1757866243682,-701.62,0.00021917,2]
[385459822,1757866243692,-1152.32,0.00021917,2]
[385459823,1757866243701,-484.59745741,0.00021917,2]
[385459824,1757866243710,-480.0,0.00021917,2]
[385459825,1757866243719,-151.0,0.00021917,2]
[385459826,1757866243729,-480.0,0.00021917,2]
[385459827,1757866243738,-480.0,0.00021917,2]
[385459828,1757866243747,-549.47,0.00021917,2]
[385459829,1757866243758,-480.0,0.00021917,2]
[385459830,1757866243767,-1284.61,0.00021917,2]
[385459831,1757866243776,-480.0,0.00021917,2]
[385459832,1757866243785,-303.62836985,0.00021917,2]
[385459833,1757866243794,-3435.65,0.00021917,2]
[385459834,1757866243804,-2228.74,0.00021917,2]
[385459836,1757866243813,-497.63353495,0.00021917,2]
[385459837,1757866243823,-486.45043996,0.00021917,2]
[385459838,1757866243832,-2558.53,0.00021917,2]
[385459839,1757866243842,-588.9538322,0.00021917,2]
[385459840,1757866243851,-480.0,0.00021917,2]
[385459841,1757866243861,-480.0,0.00021917,2]
[385459842,1757866243871,-284.2095,0.00021917,2]
[385459843,1757866243881,-480.0,0.00021917,2]
[385459844,1757866243891,-1581.44,0.00021917,2]
[385459845,1757866243900,-480.0,0.00021917,2]
[385459846,1757866243909,-1002.77,0.00021917,2]
[385459847,1757866243919,-487.74190289,0.00021917,2]
[385459848,1757866243928,-803.17,0.00021917,2]
[385459849,1757866243937,-636.18,0.00021917,2]
[385459850,1757866243946,-676.43,0.00021917,2]
[385459851,1757866243956,-1054.75,0.00021917,2]
[385459852,1757866243965,-480.0,0.00021917,2]
[385459853,1757866243974,-1325.47,0.00021917,2]
[385459854,1757866243983,-955.92,0.00021917,2]
[385459855,1757866243998,-480.0,0.00021917,2]
[385459856,1757866244010,-480.0,0.00021917,2]
[385459857,1757866244020,-779.33,0.00021917,2]
[385459858,1757866244029,-480.0,0.00021917,2]
[385459859,1757866244042,-1885.35,0.00021917,2]
[385459860,1757866244051,-480.0,0.00021917,2]
[385459861,1757866244061,-480.0,0.00021917,2]
[385459862,1757866244070,-480.0,0.00021917,2]
[385459863,1757866244081,-480.0,0.00021917,2]
[385459864,1757866244090,-2659.74,0.00021917,2]
[385459865,1757866244099,-728.35,0.00021917,2]
[385459866,1757866244109,-482.19521894,0.00021917,2]
[385459867,1757866244119,-480.0,0.00021917,2]
[385459868,1757866244129,-480.0,0.00021917,2]
[385459869,1757866244138,-480.0,0.00021917,2]
[385459870,1757866244147,-1042.64,0.00021917,2]
[385459871,1757866244157,-480.0,0.00021917,2]
[385459872,1757866244166,-368.75887402,0.00021917,2]
[385459873,1757866244175,-480.0,0.00021917,2]
[385459874,1757866244185,-485.12202504,0.00021917,2]
[385459875,1757866244194,-480.0,0.00021917,2]
[385459876,1757866244204,-703.37,0.00021917,2]
[385459877,1757866244214,-480.0,0.00021917,2]
[385459878,1757866244223,-480.0,0.00021917,2]
[385459879,1757866244232,-405.09745714,0.00021917,2]
[385459880,1757866244242,-481.8718385,0.00021917,2]
[385459881,1757866244251,-11868.37,0.00021917,2]
[385459882,1757866244262,-642.99,0.00021917,2]
[385459883,1757866244272,-480.0,0.00021917,2]
[385459884,1757866244281,-480.0,0.00021917,2]
[385459885,1757866244292,-480.0,0.00021917,2]
[385459886,1757866244301,-1266.12,0.00021917,2]
[385459887,1757866244310,-480.0,0.00021917,2]
[385459888,1757866244319,-857.34,0.00021917,2]
[385459889,1757866244329,-480.0,0.00021917,2]
[385459890,1757866244338,-480.0,0.00021917,2]
[385459891,1757866244347,-529.96,0.00021917,2]
[385459892,1757866244357,-1990.62,0.00021917,2]
[385459893,1757866244366,-480.0,0.00021917,2]
[385459894,1757866244375,-480.0,0.00021917,2]
[385459895,1757866244384,-480.0,0.00021917,2]
[385459896,1757866244394,-618.23237294,0.00021917,2]
[385459897,1757866244403,-480.0,0.00021917,2]
[385459898,1757866244412,-480.0,0.00021917,2]
[385459899,1757866244422,-1305.74,0.00021917,2]
[385459900,1757866244431,-996.01,0.00021917,2]
[385459901,1757866244440,-5765.29,0.00021917,2]
[385459902,1757866244449,-489.50062864,0.00021917,2]
[385459903,1757866244458,-2404.14,0.00021917,2]
[385459904,1757866244467,-480.0,0.00021917,2]
[385459905,1757866244476,-736.61,0.00021917,2]
[385459906,1757866244485,-494.38,0.00021917,2]
[385459907,1757866244495,-480.0,0.00021917,2]
[385459908,1757866244504,-151.0,0.00021917,2]
[385459909,1757866244513,-1123.73,0.00021917,2]
[385459910,1757866244522,-2592.64,0.00021917,2]
[385459911,1757866244531,-480.0,0.00021917,2]
[385459912,1757866244540,-480.0,0.00021917,2]
[385459913,1757866244549,-151.0,0.00021917,2]
[385459914,1757866244558,-480.0,0.00021917,2]
[385459915,1757866244567,-710.2,0.00021917,2]
[385459916,1757866244576,-1198.22,0.00021917,2]
[385459917,1757866244585,-488.47068157,0.00021917,2]
[385459918,1757866244594,-2510.57,0.00021917,2]
[385459919,1757866244603,-480.0,0.00021917,2]
[385459920,1757866244612,-480.0,0.00021917,2]
[385459921,1757866244621,-480.0,0.00021917,2]
[385459922,1757866244630,-526.20638479,0.00021917,2]
[385459923,1757866244640,-480.0,0.00021917,2]
[385459924,1757866244650,-483.90666192,0.00021917,2]
[385459925,1757866244659,-151.164201,0.00021917,2]
[385459926,1757866244668,-480.0,0.00021917,2]
[385459927,1757866244678,-572.67,0.00021917,2]
[385459928,1757866244689,-151.0,0.00021917,2]
[385459929,1757866244698,-480.0,0.00021917,2]
[385459930,1757866244708,-4914.65,0.00021917,2]
[385459931,1757866244717,-966.17,0.00021917,2]
[385459932,1757866244727,-582.41,0.00021917,2]
[385459933,1757866244737,-480.0,0.00021917,2]
[385459934,1757866244746,-1685.61,0.00021917,2]
[385459935,1757866244755,-480.0,0.00021917,2]
[385459936,1757866244764,-480.0,0.00021917,2]
[385459937,1757866244773,-480.0,0.00021917,2]
[385459938,1757866244783,-480.0,0.00021917,2]
[385459939,1757866244793,-480.0,0.00021917,2]
[385459940,1757866244802,-740.45,0.00021917,2]
[385459941,1757866244812,-480.0,0.00021917,2]
[385459942,1757866244821,-480.0,0.00021917,2]
[385459943,1757866244831,-480.0,0.00021917,2]
[385459944,1757866244840,-480.0,0.00021917,2]
[385459945,1757866244850,-480.0,0.00021917,2]
[385459946,1757866244859,-1009.52,0.00021917,2]
[385459947,1757866244869,-480.0,0.00021917,2]
[385459948,1757866244878,-480.0,0.00021917,2]
[385459949,1757866244888,-493.62241222,0.00021917,2]
[385459950,1757866244898,-480.0,0.00021917,2]
[385459951,1757866244907,-486.47111963,0.00021917,2]
[385459952,1757866244918,-480.0,0.00021917,2]
[385459953,1757866244928,-480.0,0.00021917,2]
[385459954,1757866244938,-480.0,0.00021917,2]
[385459955,1757866244947,-2169.84,0.00021917,2]
[385459956,1757866244956,-480.0,0.00021917,2]
[385459957,1757866244966,-488.11613169,0.00021917,2]
[385459958,1757866244975,-480.0,0.00021917,2]
[385459959,1757866244985,-480.0,0.00021917,2]
[385459960,1757866244994,-480.0,0.00021917,2]
[385459961,1757866245004,-480.0,0.00021917,2]
[385459962,1757866245013,-480.0,0.00021917,2]
[385459963,1757866245023,-480.0,0.00021917,2]
[385459964,1757866245034,-174.90219073,0.00021917,2]
[385459965,1757866245045,-480.0,0.00021917,2]
[385459966,1757866245055,-480.0,0.00021917,2]
[385459967,1757866245064,-480.0,0.00021917,2]
[385459968,1757866245074,-480.0,0.00021917,2]
[385459969,1757866245084,-480.0,0.00021917,2]
[385459970,1757866245094,-706.41,0.00021917,2]
[385459971,1757866245103,-480.0,0.00021917,2]
[385459972,1757866245114,-151.0,0.00021917,2]
[385459973,1757866245123,-990.26,0.00021917,2]
[385459974,1757866245132,-151.0,0.00021917,2]
[385459975,1757866245142,-480.0,0.00021917,2]
[385459976,1757866245152,-151.0,0.00021917,2]
[385459977,1757866245161,-480.0,0.00021917,2]
[385459978,1757866245170,-1276.96,0.00021917,2]
[385459979,1757866245179,-480.0,0.00021917,2]
[385459980,1757866245189,-480.0,0.00021917,2]
[385459981,1757866245198,-487.02606013,0.00021917,2]
[385459982,1757866245208,-480.0,0.00021917,2]
[385459983,1757866245217,-151.0,0.00021917,2]
[385459984,1757866245226,-396.25817208,0.00021917,2]
[385459985,1757866245235,-151.0,0.00021917,2]
[385459986,1757866245245,-480.0,0.00021917,2]
[385459987,1757866245254,-893.72,0.00021917,2]
[385459988,1757866245263,-480.0,0.00021917,2]
[385459989,1757866245274,-167.746686,0.00021917,2]
[385459990,1757866245283,-151.0,0.00021917,2]
[385459991,1757866245292,-480.0,0.00021917,2]
[385459992,1757866245301,-151.0,0.00021917,2]
[385459993,1757866245311,-300.0,0.00021917,2]
[385459994,1757866245320,-480.0,0.00021917,2]
[385459995,1757866245329,-480.0,0.00021917,2]
[385459996,1757866245338,-480.0,0.00021917,2]
[385459997,1757866245347,-480.0,0.00021917,2]
[385459998,1757866245356,-151.0,0.00021918,2]
[385459999,1757866245366,-500.0,0.00021973,2]
[385460000,1757866245375,-405.81446969,0.00021973,2]
[385460001,1757866245384,-500.2014928,0.00021973,2]
[385460002,1757866245394,-500.0,0.00021973,2]
[385460003,1757866245403,-500.0,0.00021973,2]
[385460004,1757866245412,-500.0,0.00021973,2]
[385460005,1757866245422,-500.0,0.00021973,2]
[385460006,1757866245431,-500.0,0.00021973,2]
[385460007,1757866245440,-500.0,0.00021973,2]
[385460008,1757866245449,-500.0,0.00021973,2]
[385460009,1757866245458,-500.0,0.00021973,2]
[385460010,1757866245467,-541.30234502,0.00021973,2]
[385460011,1757866245476,-500.0,0.00021973,2]
[385460012,1757866245486,-500.0,0.00021973,2]
[385460013,1757866245495,-500.0,0.00021973,2]
[385460014,1757866245504,-500.0,0.00021973,2]
[385460015,1757866245514,-500.0,0.00021973,2]
[385460016,1757866245523,-500.0,0.00021973,2]
[385460017,1757866245532,-500.0,0.00021973,2]
[385460018,1757866245543,-500.0,0.00021973,2]
[385460019,1757866245552,-500.0,0.00021973,2]
[385460020,1757866245562,-500.0,0.00021973,2]
[385460021,1757866245571,-500.0,0.00021973,2]
[385460022,1757866245580,-501.09342471,0.00021973,2]
[385460023,1757866245589,-500.0,0.00021973,2]
[385460024,1757866245599,-618.82281971,0.00021973,2]
[385460025,1757866245608,-500.0,0.00021973,2]
[385460026,1757866245618,-500.0,0.00021973,2]
[385460027,1757866245628,-500.0,0.00021973,2]
[385460028,1757866245637,-472.69707413,0.00021973,2]
[385460029,1757866245647,-500.0,0.00021973,2]
[385460030,1757866245658,-500.0,0.00021973,2]
[385460031,1757866245667,-500.65147977,0.00021973,2]
[385460032,1757866245677,-500.0,0.00021973,2]
[385460033,1757866245687,-501.80704489,0.00021973,2]
[385460034,1757866245696,-500.0,0.00021973,2]
[385460035,1757866245706,-500.0,0.00021973,2]
[385460036,1757866245715,-500.0,0.00021973,2]
[385460037,1757866245724,-207.4190293,0.00021973,2]
[385460038,1757866245733,-500.0,0.00021973,2]
[385460039,1757866245743,-500.0,0.00021973,2]
[385460040,1757866245753,-500.0,0.00021973,2]
[385460041,1757866245762,-500.0,0.00021973,2]
[385460042,1757866245772,-500.0,0.00021973,2]
[385460043,1757866245782,-500.0,0.00021973,2]
[385460044,1757866245791,-188.5479816,0.00021973,2]
[385460045,1757866245800,-188.5479816,0.00021973,2]
[385460046,1757866245810,-2464.61,0.00022,7]
[385460047,1757866245819,-188.5479816,0.00022,2]
[385460048,1757866245828,-188.5479816,0.00022,2]
[385460049,1757866245838,-359.61,0.00022,2]
[385460050,1757866245847,-10590.30103238,0.00022126,2]
[385460051,1757866245857,-500.0,0.00022147,2]
[385460052,1757866245866,-500.0,0.00022147,2]
[385460053,1757866245876,-1110.0,0.00022147,2]
[385460054,1757866245885,-151.0,0.00022147,2]
[385460055,1757866245894,-500.0,0.00022147,2]
[385460056,1757866245904,-161.46257259,0.00022147,2]
[385460057,1757866245913,-500.0,0.00022147,2]
[385460058,1757866245923,-151.0,0.00022147,2]
[385460059,1757866245933,-151.0,0.00022147,2]
[385460060,1757866245943,-151.0,0.00022147,2]
[385460061,1757866245952,-578.45507903,0.00022147,2]
[385460062,1757866245961,-500.0,0.00022147,2]
[385460063,1757866245970,-163.0,0.00022147,2]
[385460064,1757866245980,-199.33159042,0.00022147,2]
[385460065,1757866245989,-500.0,0.00022147,2]
[385460066,1757866245999,-151.0,0.00022147,2]
[385460067,1757866246009,-500.0,0.00022147,2]
[385460068,1757866246018,-151.0,0.00022147,2]
[385460070,1757866246028,-151.0,0.00022147,2]
[385460071,1757866246040,-500.0,0.00022147,2]
[385460072,1757866246049,-500.0,0.00022147,2]
[385460073,1757866246059,-500.0,0.00022147,2]
[385460074,1757866246071,-500.0,0.00022173,2]
[385460075,1757866246082,-150.0,0.00022173,2]
[385460076,1757866246091,-500.0,0.00022191,5]
[385460077,1757866246101,-163.0,0.00022191,2]
[385460078,1757866246113,-151.0,0.00022191,2]
[385460079,1757866246123,-151.0,0.00022191,2]
[385460080,1757866246133,-151.0,0.00022191,2]
[385460081,1757866246143,-151.0,0.00022191,2]
[385460082,1757866246152,-470.56460893,0.00022191,3]
[385460083,1757866246162,-465.74749509,0.00022191,3]
[385460084,1757866246171,-480.0,0.00022191,3]
[385460085,1757866246181,-480.0,0.00022191,3]
[385460086,1757866246190,-480.0,0.00022191,3]
[385460087,1757866246200,-385.76431389,0.00022191,3]
[385460088,1757866246210,-480.0,0.00022191,3]
[385460089,1757866246219,-425.80108824,0.00022191,3]
[385460090,1757866246229,-480.0,0.00022191,3]
[385460091,1757866246238,-200.0,0.00022191,3]
[385460092,1757866246247,-835.72,0.00022191,3]
[385460093,1757866246258,-480.0,0.00022191,3]
[385460094,1757866246267,-480.0,0.00022191,3]
[385460095,1757866246276,-480.0,0.00022191,3]
[385460096,1757866246286,-480.0,0.00022191,3]
[385460097,1757866246295,-480.0,0.00022191,3]
[385460098,1757866246304,-480.0,0.00022191,3]
[385460099,1757866246314,-480.0,0.00022191,3]
[385460101,1757866246323,-480.0,0.00022191,3]
[385460102,1757866246332,-480.0,0.00022191,3]
[385460103,1757866246341,-480.0,0.00022191,3]
[385460104,1757866246351,-705.41,0.00022191,3]
[385460105,1757866246360,-480.0,0.00022191,3]
[385460106,1757866246370,-286.0,0.00022191,7]
[385460107,1757866246379,-236.07979657,0.00022191,3]
[385460108,1757866246388,-567.06,0.00022191,3]
[385460109,1757866246398,-659.2,0.00022191,3]
[385460110,1757866246407,-151.0,0.00022191,7]
[385460111,1757866246417,-151.0,0.00022191,7]
[385460112,1757866246427,-151.0,0.00022191,7]
[385460113,1757866246436,-164.4,0.00022191,7]
[385460114,1757866246445,-897.66,0.00022191,3]
[385460115,1757866246454,-482.13729039,0.00022191,3]
[385460116,1757866246464,-480.0,0.00022191,3]
[385460117,1757866246473,-480.0,0.00022191,3]
[385460118,1757866246482,-480.0,0.00022191,3]
[385460119,1757866246491,-795.52,0.00022191,3]
[385460120,1757866246500,-480.0,0.00022191,3]
[385460121,1757866246511,-151.0,0.00022191,7]
[385460122,1757866246521,-733.16,0.00022191,3]
[385460123,1757866246530,-562.86161447,0.00022191,3]
[385460124,1757866246539,-636.15,0.00022191,3]
[385460125,1757866246548,-529.76015036,0.00022191,3]
[385460126,1757866246558,-480.0,0.00022191,3]
[385460127,1757866246567,-1060.84,0.00022191,3]
[385460128,1757866246576,-480.0,0.00022191,3]
[385460130,1757866246719,-480.0,0.00022191,3]
[385460131,1757866246729,-480.0,0.00022191,3]
[385460132,1757866246738,-570.24,0.00022191,3]
[385460133,1757866246748,-746.94,0.00022191,3]
[385460134,1757866246758,-480.0,0.00022191,3]
[385460135,1757866246767,-480.0,0.00022191,3]
[385460136,1757866246776,-480.0,0.00022191,3]
[385460137,1757866246785,-480.0,0.00022191,3]
[385460138,1757866246795,-480.0,0.00022191,3]
[385460139,1757866246804,-1088.42,0.00022191,3]
[385460140,1757866246813,-501.58141793,0.00022191,3]
[385460141,1757866246822,-480.0,0.00022191,3]
[385460142,1757866246832,-480.0,0.00022191,3]
[385460144,1757866246842,-480.0,0.00022191,3]
[385460146,1757866246852,-480.0,0.00022191,3]
[385460148,1757866246862,-480.0,0.00022191,3]
[385460150,1757866246872,-480.0,0.00022191,3]
[385460152,1757866246884,-480.0,0.00022191,3]
[385460154,1757866246894,-158.140728,0.00022191,7]
[385460156,1757866246904,-720.23,0.00022191,3]
[385460157,1757866246914,-480.0,0.00022191,3]
[385460158,1757866246923,-480.0,0.00022191,3]
[385460159,1757866246934,-493.58209321,0.00022191,3]
[385460160,1757866246944,-480.0,0.00022191,3]
[385460161,1757866246954,-480.0,0.00022191,3]
[385460162,1757866246963,-480.0,0.00022191,3]
[385460163,1757866246973,-480.0,0.00022191,3]
[385460164,1757866246982,-588.67,0.00022191,3]
[385460165,1757866246991,-480.0,0.00022191,3]
[385460166,1757866247000,-480.0,0.00022191,3]
[385460167,1757866247011,-480.0,0.00022191,3]
[385460168,1757866247021,-480.0,0.00022191,3]
[385460169,1757866247031,-151.0,0.00022191,7]
[385460170,1757866247043,-480.0,0.00022191,3]
[385460171,1757866247052,-480.0,0.00022191,3]
[385460172,1757866247061,-480.0,0.00022191,3]
[385460173,1757866247070,-480.0,0.00022191,3]
[385460174,1757866247079,-1415.97,0.00022191,3]
[385460175,1757866247090,-863.04,0.00022191,3]
[385460176,1757866247099,-493.28,0.00022191,3]
[385460177,1757866247108,-798.84,0.00022191,3]
[385460178,1757866247118,-480.0,0.00022191,3]
[385460179,1757866247130,-480.0,0.00022191,3]
[385460180,1757866247141,-480.0,0.00022191,3]
[385460181,1757866247151,-500.0,0.00022191,3]
[385460182,1757866247161,-480.0,0.00022191,3]
[385460183,1757866247171,-807.21,0.00022191,3]
[385460184,1757866247181,-480.0,0.00022191,3]
[385460185,1757866247192,-480.0,0.00022191,3]
[385460186,1757866247202,-631.88,0.00022191,3]
[385460187,1757866247211,-480.0,0.00022191,3]
[385460188,1757866247222,-645.9,0.00022191,3]
[385460189,1757866247233,-480.0,0.00022191,3]
[385460190,1757866247243,-480.0,0.00022191,3]
[385460191,1757866247252,-480.0,0.00022191,3]
[385460192,1757866247264,-480.0,0.00022191,3]
[385460193,1757866247273,-480.0,0.00022191,3]
[385460194,1757866247282,-480.0,0.00022191,3]
[385460195,1757866247292,-480.0,0.00022191,3]
[385460196,1757866247301,-480.0,0.00022191,3]
[385460197,1757866247311,-500.0,0.00022191,3]
[385460198,1757866247320,-480.0,0.00022191,3]
[385460199,1757866247329,-480.0,0.00022191,3]
[385460200,1757866247338,-480.0,0.00022191,3]
[385460201,1757866247347,-480.0,0.00022191,3]
[385460202,1757866247357,-480.0,0.00022191,3]
[385460203,1757866247366,-480.0,0.00022191,3]
[385460204,1757866247376,-480.0,0.00022191,3]
[385460205,1757866247385,-480.0,0.00022191,3]
[385460206,1757866247395,-480.0,0.00022191,3]
[385460207,1757866247404,-483.66432483,0.00022191,3]
[385460208,1757866247414,-480.0,0.00022191,3]
[385460209,1757866247427,-480.0,0.00022191,3]
[385460210,1757866247451,-480.0,0.00022191,3]
[385460211,1757866247501,-480.0,0.00022191,3]
[385460212,1757866247518,-203.68693169,0.00022191,3]
[385460213,1757866247527,-480.0,0.00022191,3]
[385460214,1757866247537,-1481.29,0.00022191,3]
[385460215,1757866247546,-480.0,0.00022191,3]
[385460216,1757866247556,-480.0,0.00022191,3]
[385460217,1757866247565,-481.63240129,0.00022191,3]
[385460218,1757866247574,-721.72,0.00022191,3]
[385460219,1757866247584,-480.0,0.00022191,3]
[385460220,1757866247593,-480.0,0.00022191,3]
[385460221,1757866247602,-480.0,0.00022191,3]
[385460222,1757866247612,-480.0,0.00022191,3]
[385460223,1757866247622,-480.0,0.00022191,3]
[385460224,1757866247631,-469.88258194,0.00022191,3]
[385460225,1757866247640,-480.0,0.00022191,3]
[385460226,1757866247649,-480.0,0.00022191,3]
[385460227,1757866247658,-480.0,0.00022191,3]
[385460228,1757866247667,-480.0,0.00022191,3]
[385460229,1757866247677,-480.0,0.00022191,3]
[385460230,1757866247686,-506.42554039,0.00022191,3]
[385460231,1757866247695,-846.54,0.00022191,3]
[385460232,1757866247705,-496.76054226,0.00022191,3]
[385460233,1757866247715,-761.31,0.00022191,3]
[385460234,1757866247724,-480.0,0.00022191,3]
[385460235,1757866247733,-480.0,0.00022191,3]
[385460236,1757866247743,-480.0,0.00022191,3]
[385460237,1757866247753,-151.0,0.00022191,7]
[385460238,1757866247764,-491.99687363,0.00022191,3]
[385460239,1757866247773,-3548.68,0.00022191,3]
[385460240,1757866247783,-480.0,0.00022191,3]
[385460241,1757866247792,-760.8,0.00022191,3]
[385460242,1757866247802,-480.0,0.00022191,3]
[385460243,1757866247811,-667.77,0.00022191,3]
[385460244,1757866247821,-501.81,0.00022191,3]
[385460245,1757866247830,-586.66437099,0.00022191,3]
[385460246,1757866247839,-19932.88,0.00022191,3]
[385460247,1757866247849,-480.0,0.00022191,3]
[385460248,1757866247859,-1284.44,0.00022191,3]
[385460249,1757866247868,-480.0,0.00022191,3]
[385460250,1757866247878,-5242.0,0.00022191,3]
[385460251,1757866247888,-978.54,0.00022191,3]
[385460252,1757866247898,-522.95,0.00022191,3]
[385460253,1757866247907,-480.0,0.00022191,3]
[385460254,1757866247917,-480.0,0.00022191,3]
[385460255,1757866247926,-1206.0,0.00022191,3]
[385460256,1757866247936,-480.0,0.00022191,3]
[385460257,1757866247945,-922.4,0.00022191,3]
[385460258,1757866247954,-480.0,0.00022191,3]
[385460259,1757866247963,-487.00281271,0.00022191,3]
[385460260,1757866247973,-490.22059249,0.00022191,3]
[385460261,1757866247982,-480.0,0.00022191,3]
[385460262,1757866247992,-480.0,0.00022191,3]
[385460263,1757866248001,-3462.7,0.00022191,3]
[385460264,1757866248012,-2378.56,0.00022191,3]
[385460265,1757866248021,-701.62,0.00022191,3]
[385460266,1757866248032,-1152.32,0.00022191,3]
[385460267,1757866248046,-480.0,0.00022191,3]
[385460268,1757866248055,-480.0,0.00022191,3]
[385460269,1757866248065,-549.47,0.00022191,3]